fUST/lending_fUST_20250311
["ID","MTS","AMOUNT","RATE_DAILY","PERIOD"]
[355856442,1741636304767,-500.0,0.00036134,2]
[355856443,1741636304790,-500.0,0.00036134,2]
[355856444,1741636304813,-250.0,0.00036134,2]
[355856445,1741636304834,-500.0,0.00036134,15]
[355856446,1741636304855,-193.723077,0.00041211,2]
[355856447,1741636304876,-193.723077,0.00046532,2]
[355856448,1741636304898,-158.68167274,0.00046767,120]
[355856449,1741636304919,-158.68167274,0.0004737,120]
[355856450,1741636304940,-5000.0,0.00047945,10]
[355856451,1741636304961,-2674.0758646,0.00047984,4]
[355856452,1741636304981,-25821.19327871,0.00048312,2]
[355856453,1741636305003,-7083.24,0.00048649,120]
[355856454,1741636305025,-317.98174688,0.000487,120]
[355856455,1741636305050,-738.58,0.000487,30]
[355856456,1741636305072,-1000.0,0.000488,120]
[355856457,1741636305095,-4304.39653333,0.000488,8]
[355856460,1741636361686,-500.0,0.0003798,120]
[355856461,1741636361708,-500.0,0.0003798,120]
[355856462,1741636361728,-500.0,0.0003798,120]
[355856463,1741636361750,-500.0,0.0003798,120]
[355856464,1741636361770,-168.0,0.00048,90]
[355856465,1741636361791,-5216.63,0.0004849,10]
[355856466,1741636361816,-170.90166144,0.00048499,120]
[355856467,1741636361837,-500.0,0.00048499,31]
[355856468,1741636361860,-217.38486078,0.00048499,31]
[355856469,1741636362129,-500.0,0.00048499,120]
[355856470,1741636362151,-476.10422076,0.00048499,120]
[355856471,1741636362173,-500.0,0.00048499,120]
[355856472,1741636362194,-55555.0,0.000486,120]
[355856473,1741636362216,-151.0,0.000488,26]
[355856474,1741636362238,-169.86,0.000488,30]
[355856475,1741636362260,-502.12,0.000488,30]
[355856476,1741636362282,-864.47,0.000488,30]
[355856477,1741636362303,-168.0,0.000488,30]
[355856478,1741636365330,162.76,0.000485,30]
[355856479,1741636368121,4347.2,0.0004849,10]
[355856480,1741636376126,-500.0,0.0002802,2]
[355856481,1741636376149,-694.15288372,0.0002802,2]
[355856482,1741636376170,-189.1875,0.00035,5]
[355856483,1741636376191,-214.9742663,0.00041061,2]
[355856484,1741636376212,-2005.5568984,0.00047984,4]
[355856485,1741636376234,-160.0,0.00048304,2]
[355856486,1741636376260,-500.0,0.00048499,2]
[355856487,1741636376281,-16619.6977086,0.000485,2]
[355856488,1741636915121,2550.39,0.0003498,120]
[355856489,1741637009778,-272.10564346,0.00044444,120]
[355856490,1741637009801,-500.0,0.00044444,120]
[355856491,1741637009825,-500.0,0.00044444,120]
[355856492,1741637009851,-500.0,0.00044444,120]
[355856493,1741637009874,-500.0,0.00044444,120]
[355856494,1741637009899,-410.90199001,0.00044444,120]
[355856495,1741637009921,-151.0,0.00045,120]
[355856496,1741637009943,-500.0,0.00046575,120]
[355856497,1741637009965,-500.0,0.00047123,120]
[355856498,1741637009986,-158.68167274,0.0004737,120]
[355856499,1741637010008,-500.0,0.00047671,120]
[355856500,1741637010030,-2000.0,0.00047945,120]
[355856501,1741637010054,-2000.0,0.00047945,120]
[355856502,1741637010076,-2000.0,0.00047945,120]
[355856503,1741637010098,-2000.0,0.00047945,120]
[355856504,1741637010120,-2003.64310293,0.00047945,120]
[355856505,1741637016465,-181.831308,0.00038375,2]
[355856506,1741637016487,-1812.74358742,0.0004,15]
[355856507,1741637016510,-225.271373,0.00040426,2]
[355856508,1741637016533,-181.831308,0.00040678,2]
[355856509,1741637016556,-928.8930515,0.000409,8]
[355856510,1741637016579,-1812.74358742,0.000424,15]
[355856511,1741637016604,-200.0,0.00043583,2]
[355856512,1741637016629,-940.35337552,0.00044397,19]
[355856539,1741637432633,-942.50384563,0.000429,9]
[355856542,1741637432643,-259.0,0.00043,90]
[355856544,1741637432653,-259.0,0.00043014,90]
[355856546,1741637432663,-684.37569909,0.000444,28]
[355856548,1741637432672,-157.63,0.00044435,2]
[355856550,1741637432681,-390.0,0.00044443,5]
[355856551,1741637432691,-500.0,0.00044444,2]
[355856553,1741637432701,-500.0,0.00044444,2]
[355856555,1741637432710,-500.0,0.00044444,2]
[355856557,1741637432719,-281.04861495,0.00044444,2]
[355856559,1741637432728,-267.87799889,0.00044444,120]
[355856561,1741637432738,-399.0,0.00044445,2]
[355856563,1741637432748,-24900.0,0.00044445,2]
[355856565,1741637432757,-157.63,0.0004449,2]
[355856567,1741637432767,-500.0,0.000445,10]
[355856569,1741637432776,-500.0,0.000445,7]
[355856571,1741637432785,-500.0,0.000445,10]
[355856573,1741637432795,-500.0,0.000445,10]
[355856575,1741637432805,-500.0,0.000445,10]
[355856577,1741637432814,-1963.80555304,0.000448,19]
[355856579,1741637432823,-259.0,0.00044877,90]
[355856581,1741637432833,-684.37569902,0.00045583,28]
[355856583,1741637432842,-713.09359895,0.00045845,2]
[355856585,1741637432852,-158.68167274,0.00046767,120]
[355856587,1741637432861,-263.0,0.00047121,90]
[355856589,1741637432871,-157.63,0.0004719,2]
[355856591,1741637432883,-2114.86751866,0.000472,23]
[355856593,1741637432892,-158.68167274,0.0004737,120]
[355856595,1741637432902,-835.76,0.000479,120]
[355856597,1741637432911,-1000.0,0.00047945,120]
[355856599,1741637432923,-157.63,0.00047974,2]
[355856601,1741637432932,-612.43193101,0.00047983,8]
[355856603,1741637432941,-1999.4148891,0.00047984,4]
[355856605,1741637432951,-414.0,0.00048,90]
[355856607,1741637432962,-430.951147,0.000482,2]
[355856610,1741637432984,-510.21168058,0.000482,2]
[355856657,1741637438516,-1058.83717242,0.000482,2]
[355856659,1741637438527,-198.307323,0.00048212,2]
[355856660,1741637438538,-500.0,0.00048219,120]
[355856662,1741637438547,-12202.94444982,0.00048325,9]
[355856663,1741637439191,-2.83274646,0.00048325,9]
[355856664,1741637439203,-6449.9816674,0.00048325,9]
[355856665,1741637439220,-1807.69113632,0.00048325,9]
[355856666,1741637439229,-414.0,0.00048356,90]
[355856667,1741637439239,-416.66666667,0.00048368,2]
[355856668,1741637439250,-157.63,0.00048379,2]
[355856669,1741637439259,-157.63,0.0004838,2]
[355856670,1741637439269,-500.0,0.00048389,31]
[355856671,1741637439279,-193.29152389,0.00048389,120]
[355856672,1741637439289,-316.73503514,0.00048389,31]
[355856673,1741637439300,-232.81120684,0.00048389,31]
[355856674,1741637439309,-500.0,0.00048389,120]
[355856675,1741637439319,-181.0908922,0.00048389,120]
[355856676,1741637439328,-30133.7730353,0.0004839,4]
[355856677,1741637439338,-712.06910817,0.0004839,2]
[355856678,1741637439348,-6276.54,0.0004839,10]
[355856679,1741637439357,-5230.45,0.0004839,10]
[355856680,1741637439366,-4358.71,0.0004839,10]
[355856681,1741637439377,-55555.0,0.000484,120]
[355856682,1741637439387,-1373.69117917,0.000484,2]
[355856683,1741637439396,-218.114,0.00048425,83]
[355856684,1741637439406,-2077.68,0.00048426,2]
[355856685,1741637439416,-712.06910816,0.00048468,2]
[355856686,1741637439426,-151.0,0.00048471,2]
[355856687,1741637439435,-600.0,0.00048471,2]
[355856688,1741637439701,-30133.7730353,0.00048477,4]
[355856689,1741637439712,-6788.1,0.00048486,120]
[355856690,1741637439722,-30049.970001,0.00048487,30]
[355856691,1741637439732,-120535.092141,0.0004849,4]
[355856692,1741637439743,-205380.3022914,0.000485,2]
[355856693,1741637439755,-722.55,0.000485,30]
[355856694,1741637439765,-860.09,0.000485,30]
[355856695,1741637439782,-497.41,0.000485,30]
[355856696,1741637439798,-151.06,0.000485,30]
[355856697,1741637439808,-722.01,0.000485,30]
[355856698,1741637439819,-705.96,0.000485,30]
[355856699,1741637439829,-622.2,0.00048526,2]
[355856700,1741637439839,-712.06910816,0.00048545,2]
[355856701,1741637439850,-400.0,0.00048565,120]
[355856702,1741637439860,-645.2214,0.00048581,2]
[355856703,1741637439871,-712.06910816,0.00048623,2]
[355856704,1741637439881,-669.0945918,0.00048636,2]
[355856705,1741637439895,-150.0,0.0004867,30]
[355856706,1741637439906,-500.0,0.00048673,10]
[355856707,1741637439916,-500.0,0.0004868,120]
[355856708,1741637439927,-1147.23782723,0.00048691,2]
[355856709,1741637439937,-30133.7730353,0.000487,4]
[355856710,1741637439948,-765.46,0.000487,30]
[355856711,1741637439958,-151.0,0.000487,29]
[355856712,1741637439971,-712.06910816,0.000487,2]
[355856713,1741637439980,-298.93,0.000487,120]
[355856714,1741637439991,-174.3765124,0.000487,120]
[355856715,1741637440002,-174.3765124,0.000487,120]
[355856716,1741637440012,-174.3765124,0.000487,120]
[355856717,1741637440022,-665.40629284,0.000487,120]
[355856718,1741637440032,-665.40629284,0.000487,120]
[355856719,1741637440042,-665.40629284,0.000487,120]
[355856720,1741637440052,-665.40629284,0.000487,120]
[355856721,1741637440063,-665.40629284,0.000487,120]
[355856722,1741637440073,-665.40629284,0.000487,120]
[355856723,1741637440083,-665.40629284,0.000487,120]
[355856724,1741637440093,-665.40629284,0.000487,120]
[355856725,1741637440103,-665.40629284,0.000487,120]
[355856726,1741637440113,-665.40629284,0.000487,120]
[355856727,1741637440123,-665.40629284,0.000487,120]
[355856728,1741637440133,-665.40629284,0.000487,120]
[355856729,1741637440143,-665.40629284,0.000487,120]
[355856730,1741637440154,-665.40629284,0.000487,120]
[355856731,1741637440164,-665.40629284,0.000487,120]
[355856732,1741637440175,-665.40629284,0.000487,120]
[355856733,1741637440185,-665.40629284,0.000487,120]
[355856734,1741637440196,-665.40629284,0.000487,120]
[355856735,1741637440207,-665.40629284,0.000487,120]
[355856736,1741637440217,-665.4,0.000487,120]
[355856737,1741637440228,-1552.6146833,0.000487,120]
[355856738,1741637440239,-1552.6146833,0.000487,120]
[355856739,1741637440251,-1552.6146833,0.000487,120]
[355856740,1741637440261,-1552.6146833,0.000487,120]
[355856741,1741637440271,-1552.6146833,0.000487,120]
[355856742,1741637440281,-1552.6146833,0.000487,120]
[355856743,1741637440292,-1552.6146833,0.000487,120]
[355856744,1741637440302,-1552.6146833,0.000487,120]
[355856746,1741637440312,-1552.6146833,0.000487,120]
[355856747,1741637440322,-1552.6146833,0.000487,120]
[355856748,1741637440331,-1552.6146833,0.000487,120]
[355856749,1741637440341,-1552.6146833,0.000487,120]
[355856750,1741637440351,-1552.6146833,0.000487,120]
[355856752,1741637440361,-1552.6146833,0.000487,120]
[355856754,1741637440372,-1552.6146833,0.000487,120]
[355856756,1741637440382,-500.0,0.0004871,6]
[355856758,1741637440392,-179.42331514,0.00048725,39]
[355856759,1741637440402,-500.0,0.00048767,120]
[355856760,1741637440412,-500.0,0.00048773,10]
[355856762,1741637440423,-530.32633643,0.00048773,10]
[355856763,1741637440433,-524.34274224,0.00048773,10]
[355856764,1741637440444,-389.52564847,0.00048773,10]
[355856765,1741637440454,-500.0,0.00048773,10]
[355856766,1741637440463,-500.0,0.00048773,10]
[355856768,1741637440474,-500.0,0.00048773,10]
[355856769,1741637440484,-500.0,0.00048773,10]
[355856770,1741637440494,-500.0,0.00048773,10]
[355856771,1741637440506,-500.0,0.00048773,10]
[355856772,1741637440517,-500.0,0.00048773,10]
[355856773,1741637440527,-503.00694321,0.00048773,10]
[355856774,1741637440537,-500.0,0.00048773,10]
[355856775,1741637440549,-500.0,0.00048773,10]
[355856776,1741637440559,-552.78280078,0.00048773,10]
[355856777,1741637440569,-401.05967793,0.00048773,10]
[355856778,1741637440579,-500.0,0.00048773,10]
[355856779,1741637440589,-500.0,0.00048773,10]
[355856780,1741637440599,-500.0,0.00048773,10]
[355856781,1741637440609,-500.0,0.00048773,10]
[355856782,1741637440619,-614.28122301,0.00048773,10]
[355856784,1741637440629,-500.0,0.00048773,10]
[355856786,1741637440639,-500.0,0.00048773,10]
[355856787,1741637440649,-500.0,0.00048773,10]
[355856788,1741637440659,-500.0,0.00048773,10]
[355856789,1741637440669,-156.51490957,0.00048773,10]
[355856790,1741637440679,-500.0,0.00048773,10]
[355856791,1741637440688,-595.25292899,0.00048773,2]
[355856792,1741637440699,-500.0,0.00048773,10]
[355856793,1741637440708,-500.0,0.00048773,10]
[355856794,1741637440718,-500.0,0.00048773,10]
[355856795,1741637440728,-500.0,0.00048773,10]
[355856796,1741637440738,-500.0,0.00048773,10]
[355856797,1741637440751,-521.00590337,0.00048773,7]
[355856798,1741637440761,-500.0,0.00048773,10]
[355856799,1741637440771,-504.56521754,0.00048773,10]
[355856800,1741637440781,-500.0,0.00048773,10]
[355856801,1741637440791,-7069.30133045,0.0004879,2]
[355856802,1741637440801,-60267.5460705,0.0004879,4]
[355856803,1741637440812,-40819.15210786,0.00048799,47]
[355856804,1741637440822,-188715.59929232,0.00048799,2]
[355856805,1741637441239,-172.0,0.00043,90]
[355856806,1741637441251,-172.0,0.00043014,90]
[355856807,1741637441262,-172.0,0.00044877,90]
[355856808,1741637441272,-684.37569902,0.00046765,28]
[355856809,1741637441282,-488.282,0.00048305,2]
[355856810,1741637441293,-246.28701359,0.00048799,2]
[355856831,1741637443948,-176.0,0.00047121,90]
[355856832,1741637443959,-671.78618011,0.00048799,2]
[355856833,1741637444014,-1854.78910864,0.00048799,2]
[355856845,1741637469448,1613.35377633,0.0003498,120]
[355856850,1741637637218,560.19316211,0.00027,60]
[355856851,1741637660467,2048.12318158,0.00027,3]
[355856852,1741638003158,404.0,0.00015,30]
[355856857,1741638495953,407.59779458,0.0001399,2]
[355856858,1741638497940,6229.14041467,0.0002,120]
[355856859,1741638497977,11073.76930208,0.000125,2]
[355856860,1741638498006,103.82541998,0.000125,2]
[355856861,1741638514709,155.0,0.00018,30]
[355856862,1741638517448,584.74167517,0.0002,120]
[355856863,1741638518185,609.60249117,9e-05,2]
[355856864,1741638519785,2301.21648576,0.000212,30]
[355856865,1741638520302,3976.46885682,0.00023,30]
[355856866,1741638521531,635.46464575,0.0002101,2]
[355856867,1741638521645,1795.35535624,0.0002,30]
[355856868,1741638521999,700.0,0.0001,2]
[355856870,1741638526131,500.0,0.00025,2]
[355856871,1741638557123,-773.0773668,0.00029,10]
[355856872,1741638557143,-2770.997286,0.0003,60]
[355856879,1741638607846,475.39573263,0.000269,2]
[355856904,1741638634199,-475.39573263,0.000319,2]
[355856905,1741638634208,-208.389,0.00035619,5]
[355856906,1741638634218,-182.568405,0.0003589,2]
[355856907,1741638634234,-500.0,0.00035973,5]
[355856908,1741638634244,-500.0,0.00035973,5]
[355856909,1741638634254,-162.96784478,0.00035999,15]
[355856910,1741638634264,-500.0,0.00035999,15]
[355856911,1741638634275,-500.0,0.00035999,15]
[355856912,1741638634284,-404.79143684,0.00035999,15]
[355856913,1741638634294,-418.00928646,0.00035999,15]
[355856914,1741638634303,-3147.07165108,0.00036,30]
[355856919,1741638637737,-6449.9816674,0.00036,30]
[355856920,1741638637748,-90436.23729929,0.00036,30]
[355856921,1741638637758,-515.2607985,0.000368,2]
[355856922,1741638637768,-475.39573263,0.000369,2]
[355856923,1741638637778,-1424.11208852,0.000379,8]
[355856924,1741638637788,-500.0,0.00038367,5]
[355856925,1741638637798,-515.26079847,0.00038965,2]
[355856926,1741638637807,-500.0,0.00039973,5]
[355856927,1741638637817,-500.0,0.00039973,5]
[355856928,1741638637827,-595.25292899,0.00039973,2]
[355856929,1741638637837,-500.0,0.00039973,5]
[355856930,1741638637847,-500.0,0.00039973,5]
[355856931,1741638637856,-500.0,0.00039973,5]
[355856932,1741638637866,-500.0,0.00039973,5]
[355856933,1741638637876,-156.51490957,0.00039973,5]
[355856934,1741638637886,-500.0,0.00039973,5]
[355856935,1741638637895,-552.78280078,0.00039973,5]
[355856936,1741638637905,-160.36975611,0.00039973,5]
[355856937,1741638637915,-500.0,0.00039973,5]
[355856938,1741638637923,-500.0,0.00039973,5]
[355856939,1741638637933,-500.0,0.00039973,5]
[355856940,1741638637943,-500.0,0.00039973,5]
[355856941,1741638637953,-500.0,0.00039973,5]
[355856942,1741638637962,-401.05967793,0.00039973,5]
[355856943,1741638637972,-500.0,0.00039973,5]
[355856944,1741638637981,-500.0,0.00039973,5]
[355856945,1741638637991,-504.56521754,0.00039973,5]
[355856946,1741638638000,-521.00590337,0.00039973,5]
[355856947,1741638638010,-500.0,0.00039973,5]
[355856948,1741638638019,-500.0,0.00039973,5]
[355856949,1741638638029,-500.0,0.00039973,5]
[355856950,1741638638039,-500.0,0.00039973,5]
[355856951,1741638638048,-72710.32612986,0.0004,120]
[355856952,1741638638058,-869.05,0.000412,30]
[355856953,1741638638069,-182.568405,0.00041211,2]
[355856954,1741638638079,-1000.0,0.00041452,10]
[355856955,1741638638089,-1000.0,0.00041452,10]
[355856956,1741638638099,-208.389,0.00042555,14]
[355856957,1741638638108,-12690.88846207,0.00043,120]
[355856958,1741638638117,-464.29115314,0.00043,2]
[355856959,1741638638127,-881.6,0.00043,30]
[355856960,1741638638136,-24900.0,0.00043054,2]
[355856961,1741638638146,-214.75,0.000431,30]
[355856962,1741638638154,-705.96,0.000431,30]
[355856963,1741638638164,-179.44372445,0.00043444,29]
[355856964,1741638638173,-1000.0,0.00043846,10]
[355856965,1741638638183,-869.05,0.00044,30]
[355856966,1741638638192,-464.2911531,0.00044364,2]
[355856967,1741638638201,-513.81711046,0.00045452,10]
[355856968,1741638638210,-1000.0,0.00045452,10]
[355856969,1741638638220,-573.07498443,0.00045452,10]
[355856970,1741638638230,-1000.0,0.00045452,10]
[355856971,1741638638243,-1000.0,0.00045452,10]
[355856972,1741638638253,-609.40605544,0.00045452,10]
[355856973,1741638638262,-1010.14578806,0.00045452,10]
[355856974,1741638638273,-1000.0,0.00045452,10]
[355856975,1741638638283,-1000.0,0.00045452,10]
[355856976,1741638638292,-1000.0,0.00045452,10]
[355856977,1741638638302,-1000.0,0.00045452,10]
[355856978,1741638638313,-272.18922785,0.00045452,10]
[355856979,1741638638324,-464.2911531,0.00045728,2]
[355856980,1741638638334,-1750.51665053,0.00046,120]
[355856981,1741638638344,-881.6,0.000463,30]
[355856982,1741638638353,-182.568405,0.00046532,2]
[355856983,1741638638363,-500.0,0.00046575,120]
[355856984,1741638638372,-999.0,0.00047,120]
[355856985,1741638638381,-464.2911531,0.00047091,2]
[355856986,1741638638391,-214.75,0.000471,30]
[355856987,1741638638400,-705.96,0.000471,30]
[355856988,1741638638410,-7283.00230272,0.00047109,2]
[355856989,1741638638419,-500.0,0.00047123,120]
[355856990,1741638638429,-266.53666222,0.00047167,2]
[355856991,1741638638439,-500.0,0.00047671,120]
[355856992,1741638638448,-232.099,0.00047671,81]
[355856993,1741638638457,-172.43223609,0.00047671,81]
[355856994,1741638638467,-869.05,0.000477,30]
[355856995,1741638638476,-716.21616889,0.00047906,2]
[355856996,1741638638486,-311.0,0.00048,90]
[355856997,1741638638495,-3000.0,0.00048,120]
[355856998,1741638638504,-3000.0,0.00048,120]
[355856999,1741638638514,-3000.0,0.00048,120]
[355857000,1741638638523,-3000.0,0.00048,120]
[355857001,1741638638532,-3061.0,0.00048,120]
[355857002,1741638638541,-3845.82472886,0.00048,3]
[355857003,1741638638551,-1101.54512701,0.00048,120]
[355857004,1741638638561,-22292.24957418,0.00048,120]
[355857005,1741638638570,-158.0,0.00048,90]
[355857006,1741638638579,-881.6,0.00048,30]
[355857007,1741638638588,-30941.69691724,0.00048015,2]
[355857008,1741638638598,-716.21616889,0.00048055,2]
[355857009,1741638638608,-500.0,0.00048219,120]
[355857010,1741638638617,-311.0,0.00048356,90]
[355857011,1741638638627,-200.0,0.00048357,30]
[355857012,1741638638636,-2077.68,0.00048399,2]
[355857013,1741638638646,-298.93,0.000484,120]
[355857014,1741638638656,-174.3765124,0.000484,120]
[355857015,1741638638665,-174.3765124,0.000484,120]
[355857016,1741638638674,-665.40629284,0.000484,120]
[355857017,1741638638684,-665.40629284,0.000484,120]
[355857018,1741638638693,-665.40629284,0.000484,120]
[355857019,1741638638703,-665.40629284,0.000484,120]
[355857020,1741638638713,-665.40629284,0.000484,120]
[355857021,1741638638722,-665.40629284,0.000484,120]
[355857022,1741638638732,-665.40629284,0.000484,120]
[355857023,1741638638741,-665.40629284,0.000484,120]
[355857024,1741638638751,-665.40629284,0.000484,120]
[355857025,1741638638761,-665.40629284,0.000484,120]
[355857026,1741638638771,-665.40629284,0.000484,120]
[355857027,1741638638781,-665.40629284,0.000484,120]
[355857028,1741638638791,-665.40629284,0.000484,120]
[355857029,1741638638800,-665.40629284,0.000484,120]
[355857030,1741638638813,-665.40629284,0.000484,120]
[355857031,1741638638823,-665.40629284,0.000484,120]
[355857032,1741638638833,-665.40629284,0.000484,120]
[355857033,1741638638843,-665.40629284,0.000484,120]
[355857034,1741638638853,-665.40629284,0.000484,120]
[355857035,1741638638863,-665.4,0.000484,120]
[355857036,1741638638873,-1552.6146833,0.000484,120]
[355857037,1741638638883,-1552.6146833,0.000484,120]
[355857038,1741638638893,-1552.6146833,0.000484,120]
[355857039,1741638638903,-1552.6146833,0.000484,120]
[355857040,1741638638913,-1552.6146833,0.000484,120]
[355857041,1741638638923,-1552.6146833,0.000484,120]
[355857042,1741638638933,-1552.6146833,0.000484,120]
[355857043,1741638638942,-1552.6146833,0.000484,120]
[355857044,1741638638952,-1552.6146833,0.000484,120]
[355857045,1741638638962,-1552.6146833,0.000484,120]
[355857046,1741638638972,-1552.6146833,0.000484,120]
[355857047,1741638638982,-1552.6146833,0.000484,120]
[355857048,1741638638992,-1552.6146833,0.000484,120]
[355857049,1741638639002,-1552.6146833,0.000484,120]
[355857050,1741638639013,-716.21616889,0.00048423,2]
[355857051,1741638639023,-6505.27,0.00048425,120]
[355857052,1741638639033,-464.2911531,0.00048455,2]
[355857053,1741638639043,-500.0,0.00048473,7]
[355857054,1741638639257,-150.72251828,0.00048473,10]
[355857055,1741638639268,-153.61620045,0.00048473,10]
[355857056,1741638639279,-150.0,0.00048473,10]
[355857057,1741638639289,-500.0,0.00048486,120]
[355857058,1741638639298,-110332.59014678,0.000485,36]
[355857059,1741638639312,-40819.15210786,0.000485,47]
[355857060,1741638639322,-323655.6999296,0.000485,120]
[355857133,1741638642707,-515.26079847,0.0004113,28]
[355857134,1741638642718,-44364.42081008,0.000485,120]
[355857149,1741639614163,-500.0,0.0003,30]
[355857150,1741639614187,-174.335232,0.0003589,2]
[355857151,1741639614209,-173.40009604,0.00037644,106]
[355857185,1741639831992,-182.973019,0.00035531,2]
[355857186,1741639832002,-150.0,0.00035544,2]
[355857187,1741639832011,-60.526981,0.00035642,120]
[355857188,1741639832024,-223.44651,0.00035642,120]
[355857189,1741639832034,-165.61847,0.0003589,2]
[355857190,1741639832043,-5.07582,0.00037744,2]
[355857227,1741639837893,-494.92418,0.00037744,2]
[355857228,1741639837903,-500.0,0.00037744,2]
[355857229,1741639837913,-500.0,0.00037744,2]
[355857230,1741639837923,-500.0,0.00037744,2]
[355857231,1741639837932,-312.24087719,0.00037744,2]
[355857232,1741639837942,-500.0,0.00037744,2]
[355857233,1741639837951,-500.0,0.00037744,2]
[355857234,1741639837961,-500.0,0.00037744,2]
[355857235,1741639837971,-500.0,0.00037744,2]
[355857236,1741639837980,-6010.77688229,0.00037745,2]
[355857274,1741639840124,-2900.48685319,0.00037745,2]
[355857299,1741639843292,-94.19281423,0.00037745,2]
[355857300,1741639843305,-1805.17459703,0.00037745,2]
[355857301,1741639843317,-379.2193457,0.00037745,2]
[355857302,1741639843328,-4082.97451838,0.00037745,2]
[355857307,1741639843361,-691.76,0.00037745,2]
[355859896,1741640970154,-1243.0,0.0003579,2]
[355859897,1741640970175,-157.337546,0.0003589,2]
[355859898,1741640970196,-716.21616889,0.0003716,2]
[355859899,1741640970220,-716.21616889,0.00037514,2]
[355859900,1741640970243,-253.4011056,0.00040206,120]
[355859901,1741640970277,-322.03799907,0.000403,28]
[355859902,1741640970302,-500.0,0.00040306,2]
[355859903,1741640970328,-500.0,0.00040306,2]
[355859904,1741640970354,-381.22408772,0.00040306,2]
[355859905,1741640970379,-500.0,0.00040306,2]
[355859906,1741640970401,-500.0,0.00040306,2]
[355859907,1741640970426,-153.46934308,0.00040306,2]
[355859908,1741640970448,-153.46934308,0.00040306,2]
[355859909,1741640970471,-421.44100957,0.00040306,2]
[355859928,1741641032208,-1812.56287327,0.0004,15]
[355859929,1741641032222,-78.55899043,0.00040306,2]
[355859930,1741641032232,-500.0,0.00040306,2]
[355859931,1741641032242,-500.0,0.00040306,2]
[355859932,1741641032252,-5009.3771363,0.00040307,2]
[355859942,1741641038036,-19890.6228637,0.00040307,2]
[355859943,1741641038047,-500.0,0.000404,5]
[355859944,1741641038057,-500.0,0.000404,5]
[355859945,1741641038067,-500.0,0.000404,5]
[355859946,1741641038076,-500.0,0.000404,2]
[355859947,1741641038086,-500.0,0.000404,5]
[355859948,1741641038096,-500.0,0.000404,5]
[355859949,1741641038108,-1934.66653882,0.000409,8]
[355859950,1741641038118,-160.0,0.00040978,2]
[355859951,1741641038128,-157.337546,0.00041211,2]
[355859952,1741641038138,-283.973491,0.00041582,120]
[355859953,1741641038150,-229.302,0.00042048,63]
[355859954,1741641038159,-1812.56287327,0.000424,15]
[355859955,1741641038169,-179.44372445,0.00043444,29]
[355859956,1741641038179,-1963.60977938,0.000448,19]
[355859959,1741641038189,-200.0,0.00045376,2]
[355859961,1741641038200,-1000.0,0.00045879,10]
[355859963,1741641038210,-500.0,0.00045879,7]
[355859965,1741641038220,-1000.0,0.00045879,10]
[355859967,1741641038230,-1000.0,0.00045879,10]
[355859969,1741641038239,-1963.60977938,0.00046327,19]
[355859971,1741641038249,-157.337546,0.00046532,2]
[355859977,1741641038584,-500.0,0.00046575,120]
[355859978,1741641038594,-2919.26156742,0.00046866,2]
[355859979,1741641038605,-500.0,0.00047123,120]
[355859980,1741641038614,-2114.65668549,0.000472,23]
[355859981,1741641038624,-151.0,0.000475,23]
[355859982,1741641038634,-283.973491,0.00047523,120]
[355859983,1741641038644,-500.0,0.00047671,120]
[355859984,1741641038655,-151.0,0.000477,23]